[Event "360 One Wealth GP-4 2024"]
[Site "Mumbai"]
[Date "2024.03.15"]
[Round "5.11"]
[White "Shravan Balram"]
[Black "Arjun Singh"]
[Result "0-1"]
[ECO "B76"]
[WhiteElo "1488"]
[BlackElo "1602"]
[Annotator "NA RC"]
[PlyCount "134"]
[EventDate "2024.03.10"]
[EventCountry "IND"]
[SourceTitle "playchess.com"]
[Source "ChessBase"]
[SourceQuality "1"]
[TimeControl "5400+30"]

1. e4 {[%emt 0:00:03]} c5 {[%emt 0:00:09]} 2. Nf3 {[%emt 0:00:21]} Nc6 {[%emt 0:00:11]} 3. Nc3 {[%emt 0:00:21]} g6 {[%emt 0:00:07]} 4. d4 {[%emt 0:03:22]} cxd4 {[%emt 0:00:20]} 5. Nxd4 {[%emt 0:00:06]} Bg7 {[%emt 0:00:06]} 6. Be3 {[%emt 0:02:20]} Nf6 {[%emt 0:02:25]} 7. Bc4 {[%emt 0:02:42]} O-O {[%emt 0:00:00]} 8. Nxc6 {[%emt 0:01:46]} bxc6 {[%emt 0:00:00]} 9. f3 {[%emt 0:02:13]} d6 {[%emt 0:00:00]} 10. Qd2 {[%emt 0:02:01]} c5 {[%emt 0:00:07]} 11. Bh6 {[%emt 0:01:59]} Rb8 {[%emt 0:00:11]} 12. Bxg7 {[%emt 0:06:06]} Kxg7 {[%emt 0:00:07]} 13. Rb1 {[%emt 0:00:03]} e6 {[%emt 0:02:55]} 14. O-O {[%emt 0:00:18]} Rb4 {[%emt 0:00:49]} 15. Qd3 {[%emt 0:03:04]} d5 {[%emt 0:00:30]} 16. exd5 {[%emt 0:00:36]} exd5 {[%emt 0:00:07]} 17. Bxd5 {[%emt 0:00:15]} Rd4 {[%emt 0:00:13]} 18. Qb5 {[%emt 0:02:28]} Nxd5 {[%emt 0:00:26]} 19. Qxc5 {[%emt 0:00:24]} Qb6 {[%emt 0:02:28]} 20. Qxb6 {[%emt 0:03:00]} axb6 {[%emt 0:00:09]} 21. Nxd5 {[%emt 0:00:30]} Rxd5 {[%emt 0:00:06]} 22. Rfd1 {[%emt 0:00:39]} Ra5 {[%emt 0:01:02]} 23. a3 {[%emt 0:00:32]} Bf5 {[%emt 0:00:06]} 24. Rd6 {[%emt 0:00:26]} Rb5 {[%emt 0:00:18]} 25. Rc6 {[%emt 0:00:43]} Ra8 {[%emt 0:00:28]} 26. g4 {[%emt 0:01:13]} Be6 {[%emt 0:00:07]} 27. Rc3 {[%emt 0:00:30]} Rd8 {[%emt 0:00:18]} 28. b4 {[%emt 0:00:20]} Re5 {[%emt 0:00:44]} 29. Rf1 {[%emt 0:03:11]} Rd2 {[%emt 0:00:24]} 30. Rf2 {[%emt 0:00:19]} Re1+ {[%emt 0:00:06]} 31. Kg2 {[%emt 0:00:06]} Rdd1 {[%emt 0:00:06]} 32. Kg3 {[%emt 0:02:15]} g5 {[%emt 0:00:15]} 33. Rc6 {[%emt 0:01:24]} b5 {[%emt 0:02:29]} 34. Rc5 {[%emt 0:01:03]} Rd5 {[%emt 0:00:06]} 35. Rxd5 {[%emt 0:00:06]} Bxd5 {[%emt 0:00:06]} 36. Rd2 {[%emt 0:00:16]} Bc4 {[%emt 0:00:04]} 37. Rd6 {[%emt 0:02:08]} Re3 {[%emt 0:00:37]} 38. Ra6 {[%emt 0:00:23]} Be2 {[%emt 0:00:15]} 39. Kf2 {[%emt 0:00:20]} Re5 {[%emt 0:00:05]} 40. Ra5 {[%emt 0:00:49]} Bc4 {[%emt 0:01:46]} 41. a4 {[%emt 0:00:12]} Re2+ {[%emt 0:00:05]} 42. Kg3 {[%emt 0:00:13]} Rxc2 {[%emt 0:00:33]} 43. axb5 {[%emt 0:00:06]} Bf1 {[%emt 0:00:37]} 44. f4 {[%emt 0:00:34]} gxf4+ {[%emt 0:00:30]} 45. Kxf4 {[%emt 0:00:07]} Rxh2 {[%emt 0:00:08]} 46. b6 {[%emt 0:00:23]} Rb2 {[%emt 0:00:06]} 47. Ra4 {[%emt 0:01:38]} Bg2 {[%emt 0:00:12]} 48. Ke5 {[%emt 0:02:05]} Bc6 {[%emt 0:00:09]} 49. b7 {[%emt 0:01:18]} Bxb7 {[%emt 0:00:12]} 50. Kd6 {[%emt 0:00:01]} Bc8 {[%emt 0:00:20]} 51. g5 {[%emt 0:00:58]} Kg6 {[%emt 0:00:27]} 52. Ke7 {[%emt 0:00:39]} Be6 {[%emt 0:01:03]} 53. Kf8 {[%emt 0:01:25]} Kxg5 {[%emt 0:01:00]} 54. Kg7 {[%emt 0:00:07]} h5 {[%emt 0:00:10]} 55. Ra5+ {[%emt 0:01:23]} f5 {[%emt 0:01:50]} 56. Ra6 {[%emt 0:00:26]} Rxb4 {[%emt 0:00:29]} 57. Rxe6 {[%emt 0:00:11]} Rb7+ {[%emt 0:00:10]} 58. Kg8 {[%emt 0:00:17]} h4 {[%emt 0:00:57]} 59. Re3 {[%emt 0:00:29]} f4 {[%emt 0:00:57]} 60. Re5+ {[%emt 0:00:39]} Kg4 {[%emt 0:00:10]} 61. Re4 {[%emt 0:00:20]} h3 {[%emt 0:00:06]} 62. Re2 {[%emt 0:00:44]} f3 {[%emt 0:01:47]} 63. Re1 {[%emt 0:00:19]} f2 {[%emt 0:00:09]} 64. Rf1 {[%emt 0:00:10]} Kg3 {[%emt 0:00:05]} 65. Rh1 {[%emt 0:00:17]} h2 {[%emt 0:00:08]} 66. Rd1 {[%emt 0:00:48]} Kg2 {[%emt 0:00:06]} 67. Rd5 {[%emt 0:00:40]} h1=Q {[%emt 0:00:07]} 0-1

[Event "360 One Wealth GP-4 2024"]
[Site "Mumbai"]
[Date "2024.03.15"]
[Round "5.12"]
[White "Shraddha Naresh Padvekar"]
[Black "Prranamya S Panagaonkar"]
[Result "0-1"]
[ECO "A45"]
[WhiteElo "1579"]
[BlackElo "1471"]
[Annotator "NA RC"]
[PlyCount "108"]
[EventDate "2024.03.10"]
[EventCountry "IND"]
[SourceTitle "playchess.com"]
[Source "ChessBase"]
[SourceQuality "1"]
[TimeControl "5400+30"]

1. d4 {[%emt 0:10:12]} Nf6 {[%emt 0:00:12]} 2. Bf4 {[%emt 0:00:13]} g6 {[%emt 0:00:33]} 3. Nd2 {[%emt 0:00:55]} Bg7 {[%emt 0:00:31]} 4. e4 {[%emt 0:00:08]} d6 {[%emt 0:00:55]} 5. h3 {[%emt 0:00:11]} Nc6 {[%emt 0:00:53]} 6. c3 {[%emt 0:01:43]} e5 {[%emt 0:04:42]} 7. dxe5 {[%emt 0:00:15]} dxe5 {[%emt 0:00:09]} 8. Bh2 {[%emt 0:00:40]} O-O {[%emt 0:02:00]} 9. Ngf3 {[%emt 0:01:23]} Re8 {[%emt 0:03:53]} 10. Bc4 {[%emt 0:01:33]} Be6 {[%emt 0:08:01]} 11. Qc2 {[%emt 0:12:10]} Bxc4 {[%emt 0:07:49]} 12. Nxc4 {[%emt 0:00:15]} Nh5 {[%emt 0:04:30]} 13. O-O {[%emt 0:00:57]} Qf6 {[%emt 0:11:28]} 14. Ne3 {[%emt 0:01:36]} Rac8 {[%emt 0:03:26]} 15. Nd5 {[%emt 0:08:19]} Qd6 {[%emt 0:02:00]} 16. Rad1 {[%emt 0:01:15]} Qc5 {[%emt 0:03:59]} 17. b4 {[%emt 0:08:07]} Qc4 {[%emt 0:02:36]} 18. Nd2 {[%emt 0:14:04]} Qa6 {[%emt 0:01:21]} 19. a4 {[%emt 0:02:20]} Ne7 {[%emt 0:02:10]} 20. Ne3 {[%emt 0:05:02]} Qe6 {[%emt 0:01:25]} 21. Nf3 {[%emt 0:00:23]} h6 {[%emt 0:02:28]} 22. Ng4 {[%emt 0:03:40]} f6 {[%emt 0:05:58]} 23. Qd2 {[%emt 0:01:06]} Kh7 {[%emt 0:03:06]} 24. Qd7 {[%emt 0:02:11]} Qxd7 {[%emt 0:03:29]} 25. Rxd7 {[%emt 0:00:07]} Nf4 {[%emt 0:01:24]} 26. Bxf4 {[%emt 0:02:21]} exf4 {[%emt 0:00:02]} 27. e5 {[%emt 0:02:13]} fxe5 {[%emt 0:01:59]} 28. Ngxe5 {[%emt 0:00:26]} Bf6 {[%emt 0:09:10]} 29. Rfd1 {[%emt 0:00:53]} a5 {[%emt 0:08:33]} 30. b5 {[%emt 0:07:27]} Kg8 {[%emt 0:01:55]} 31. c4 {[%emt 0:00:22]} g5 {[%emt 0:01:32]} 32. Ng4 {[%emt 0:04:03]} Bg7 {[%emt 0:00:12]} 33. Re1 {[%emt 0:01:24]} Ng6 {[%emt 0:03:13]} 34. Rxe8+ {[%emt 0:00:30]} Rxe8 35. Rxc7 {[%emt 0:00:04]} Re7 {[%emt 0:00:42]} 36. Rc8+ {[%emt 0:00:14]} Kf7 {[%emt 0:00:38]} 37. b6 {[%emt 0:02:04]} Rd7 {[%emt 0:01:26]} 38. Ra8 {[%emt 0:03:30]} Rd1+ {[%emt 0:00:42]} 39. Kh2 {[%emt 0:00:04]} Rd6 {[%emt 0:00:28]} 40. c5 {[%emt 0:00:12]} Rd5 {[%emt 0:00:16]} 41. Rxa5 {[%emt 0:00:11]} h5 {[%emt 0:00:19]} 42. Ne3 {[%emt 0:02:42]} fxe3 {[%emt 0:00:13]} 43. fxe3 {[%emt 0:00:05]} g4 {[%emt 0:01:12]} 44. Nd4 {[%emt 0:10:46]} Be5+ {[%emt 0:00:13]} 45. Kg1 Bxd4 {[%emt 0:00:14]} 46. exd4 {[%emt 0:00:07]} g3 {[%emt 0:00:21]} 47. Kf1 {[%emt 0:00:13]} Nf4 {[%emt 0:00:18]} 48. Ra7 {[%emt 0:01:40]} Rxd4 {[%emt 0:00:34]} 49. Ke1 {[%emt 0:00:12]} Nxg2+ {[%emt 0:00:09]} 50. Ke2 {[%emt 0:01:16]} Nf4+ {[%emt 0:00:11]} 51. Kf3 {[%emt 0:01:52]} g2 {[%emt 0:00:11]} 52. Rxb7+ {[%emt 0:00:06]} Kf6 {[%emt 0:00:20]} 53. c6 {[%emt 0:02:00]} g1=Q {[%emt 0:00:10]} 54. Rc7 {[%emt 0:00:20]} Qg2+ {[%emt 0:00:06]} 0-1

[Event "360 One Wealth GP-4 2024"]
[Site "Mumbai"]
[Date "2024.03.15"]
[Round "5.13"]
[White "Sriharsh Shibu Nair"]
[Black "Vivek Ashok Jadhav"]
[Result "0-1"]
[ECO "A47"]
[WhiteElo "1455"]
[BlackElo "1559"]
[Annotator "NA RC"]
[PlyCount "66"]
[EventDate "2024.03.10"]
[EventCountry "IND"]
[SourceTitle "playchess.com"]
[Source "ChessBase"]
[SourceQuality "1"]
[TimeControl "5400+30"]

1. d4 {[%emt 0:05:22]} Nf6 {[%emt 0:00:59]} 2. Bf4 {[%emt 0:00:07]} g6 {[%emt 0:01:56]} 3. Nf3 {[%emt 0:00:05]} Bg7 {[%emt 0:00:14]} 4. e3 {[%emt 0:00:08]} b6 {[%emt 0:00:54]} 5. Nbd2 {[%emt 0:00:19]} Bb7 {[%emt 0:00:23]} 6. c4 {[%emt 0:01:08]} O-O {[%emt 0:01:21]} 7. Be2 {[%emt 0:00:12]} d6 {[%emt 0:01:34]} 8. O-O {[%emt 0:00:20]} Nbd7 {[%emt 0:01:00]} 9. Qc2 {[%emt 0:00:16]} c5 {[%emt 0:03:44]} 10. Rad1 {[%emt 0:00:47]} cxd4 {[%emt 0:03:24]} 11. exd4 {[%emt 0:00:22]} Rc8 {[%emt 0:01:18]} 12. b3 {[%emt 0:00:28]} b5 {[%emt 0:02:06]} 13. Qb1 {[%emt 0:00:53]} b4 {[%emt 0:01:09]} 14. Rfe1 {[%emt 0:00:31]} Re8 {[%emt 0:01:06]} 15. Bd3 {[%emt 0:00:53]} Nf8 {[%emt 0:02:58]} 16. Ne4 {[%emt 0:02:02]} Ne6 {[%emt 0:01:07]} 17. Bg3 {[%emt 0:00:59]} Qb6 {[%emt 0:03:42]} 18. d5 {[%emt 0:00:45]} Nc5 {[%emt 0:06:58]} 19. Nxc5 {[%emt 0:00:24]} Qxc5 {[%emt 0:00:28]} 20. Nd2 {[%emt 0:01:06]} a5 {[%emt 0:00:59]} 21. Ne4 {[%emt 0:00:33]} Nxe4 {[%emt 0:03:06]} 22. Bxe4 {[%emt 0:00:24]} Bc3 {[%emt 0:01:27]} 23. Re2 {[%emt 0:00:15]} a4 {[%emt 0:00:36]} 24. Bf4 {[%emt 0:07:51]} axb3 {[%emt 0:01:10]} 25. axb3 {[%emt 0:01:06]} Ra8 {[%emt 0:01:05]} 26. Be3 {[%emt 0:00:22]} Qc7 {[%emt 0:04:06]} 27. Bd4 {[%emt 0:00:52]} Ra1 {[%emt 0:03:41]} 28. Qd3 {[%emt 0:00:07]} Rea8 {[%emt 0:04:48]} 29. Bxc3 {[%emt 0:00:47]} bxc3 {[%emt 0:09:49]} 30. Ree1 {[%emt 0:00:25]} Rxd1 {[%emt 0:08:58]} 31. Rxd1 {[%emt 0:00:09]} Qa5 {[%emt 0:00:41]} 32. Rc1 {[%emt 0:00:38]} Qb4 {[%emt 0:00:47]} 33. Qxc3 {[%emt 0:00:14]} Qxc3 {[%emt 0:02:07]} 0-1

[Event "360 One Wealth GP-4 2024"]
[Site "Mumbai"]
[Date "2024.03.15"]
[Round "5.14"]
[White "Khanak Paharia"]
[Black "Isaiah Chris Nazareth"]
[Result "0-1"]
[ECO "E94"]
[WhiteElo "1492"]
[BlackElo "1698"]
[Annotator "NA RC"]
[PlyCount "72"]
[EventDate "2024.03.10"]
[EventCountry "IND"]
[SourceTitle "playchess.com"]
[Source "ChessBase"]
[SourceQuality "1"]
[TimeControl "5400+30"]

1. Nf3 {[%emt 0:00:18]} Nf6 {[%emt 0:00:08]} 2. d4 {[%emt 0:00:03]} g6 {[%emt 0:00:27]} 3. c4 {[%emt 0:00:04]} Bg7 {[%emt 0:00:04]} 4. Nc3 {[%emt 0:00:08]} O-O {[%emt 0:00:08]} 5. e4 {[%emt 0:00:38]} d6 {[%emt 0:00:04]} 6. Be2 {[%emt 0:01:21]} Nbd7 {[%emt 0:01:26]} 7. O-O {[%emt 0:01:06]} e5 {[%emt 0:00:42]} 8. dxe5 {[%emt 0:05:48]} dxe5 {[%emt 0:00:06]} 9. Bd3 {[%emt 0:02:27]} c6 {[%emt 0:05:37]} 10. h3 {[%emt 0:04:22]} Qe7 {[%emt 0:00:58]} 11. Qc2 {[%emt 0:01:12]} Nc5 {[%emt 0:01:53]} 12. Rd1 {[%emt 0:03:53]} Ne8 {[%emt 0:05:11]} 13. Be3 {[%emt 0:03:26]} Ne6 {[%emt 0:01:07]} 14. Bf1 {[%emt 0:05:12]} f5 {[%emt 0:00:46]} 15. Bc1 {[%emt 0:08:44]} f4 {[%emt 0:02:30]} 16. b3 {[%emt 0:03:53]} h5 {[%emt 0:01:47]} 17. Bb2 {[%emt 0:02:27]} g5 {[%emt 0:11:22]} 18. Ne2 {[%emt 0:01:22]} Qc7 {[%emt 0:07:10]} 19. c5 {[%emt 0:10:44]} Bf6 {[%emt 0:04:53]} 20. g4 {[%emt 0:09:55]} fxg3 {[%emt 0:12:44]} 21. Nxg3 {[%emt 0:07:38]} Nf4 {[%emt 0:05:12]} 22. Nf5 {[%emt 0:02:48]} Ng7 {[%emt 0:01:14]} 23. Nd6 {[%emt 0:02:31]} Bxh3 {[%emt 0:01:39]} 24. Nxe5 {[%emt 0:01:57]} Bxf1 {[%emt 0:00:51]} 25. Rxf1 {[%emt 0:00:13]} Bxe5 {[%emt 0:05:12]} 26. Bxe5 {[%emt 0:00:03]} Qd7 {[%emt 0:00:59]} 27. f3 {[%emt 0:01:41]} g4 {[%emt 0:05:29]} 28. fxg4 {[%emt 0:03:24]} Qxg4+ {[%emt 0:00:34]} 29. Kh1 {[%emt 0:00:24]} Ne2 {[%emt 0:01:35]} 30. Qd3 {[%emt 0:02:07]} h4 {[%emt 0:04:58]} 31. Rae1 {[%emt 0:01:22]} Ng3+ {[%emt 0:07:05]} 32. Bxg3 {[%emt 0:00:17]} hxg3 {[%emt 0:00:05]} 33. Kg2 {[%emt 0:01:59]} Rf2+ {[%emt 0:00:14]} 34. Rxf2 {[%emt 0:02:03]} gxf2+ {[%emt 0:00:06]} 35. Kxf2 {[%emt 0:00:45]} Rf8+ {[%emt 0:00:14]} 36. Ke3 {[%emt 0:01:53]} Rf3+ {[%emt 0:00:14]} 0-1

[Event "360 One Wealth GP-4 2024"]
[Site "Mumbai"]
[Date "2024.03.15"]
[Round "5.15"]
[White "Sathiesh Kumaar L"]
[Black "Sunil, Vaidya"]
[Result "0-1"]
[ECO "B03"]
[WhiteElo "1497"]
[BlackElo "1640"]
[Annotator "NA RC"]
[PlyCount "131"]
[EventDate "2024.03.10"]
[EventCountry "IND"]
[SourceTitle "playchess.com"]
[Source "ChessBase"]
[SourceQuality "1"]
[TimeControl "5400+30"]

1. e4 Nf6 {[%emt 0:21:37]} 2. e5 {[%emt 0:00:27]} Nd5 {[%emt 0:00:18]} 3. c4 {[%emt 0:00:25]} Nb6 {[%emt 0:00:06]} 4. d4 {[%emt 0:00:09]} d6 {[%emt 0:00:15]} 5. f4 g6 {[%emt 0:00:59]} 6. Nc3 Bg7 {[%emt 0:02:24]} 7. Be3 O-O {[%emt 0:02:04]} 8. c5 N6d7 {[%emt 0:01:42]} 9. Bc4 dxe5 {[%emt 0:04:21]} 10. fxe5 {[%emt 0:04:45]} Nc6 {[%emt 0:03:55]} 11. h4 Na5 {[%emt 0:03:26]} 12. Be2 e6 {[%emt 0:04:20]} 13. h5 {[%emt 0:31:45]} f6 {[%emt 0:15:44]} 14. hxg6 {[%emt 0:03:27]} hxg6 {[%emt 0:00:34]} 15. Bd3 {[%emt 0:06:36]} fxe5 {[%emt 0:05:50]} 16. Bxg6 {[%emt 0:09:11]} Rf5 {[%emt 0:05:26]} 17. Bxf5 {[%emt 0:01:57]} exf5 {[%emt 0:00:09]} 18. dxe5 {[%emt 0:00:36]} Qe7 {[%emt 0:02:50]} 19. Qd5+ {[%emt 0:02:33]} Kf8 {[%emt 0:00:32]} 20. Nf3 {[%emt 0:05:39]} c6 {[%emt 0:03:43]} 21. Qd6 {[%emt 0:01:10]} Qxd6 {[%emt 0:01:24]} 22. cxd6 {[%emt 0:03:46]} Nc4 {[%emt 0:01:29]} 23. Bh6 {[%emt 0:01:48]} Ndxe5 {[%emt 0:01:16]} 24. Bxg7+ {[%emt 0:00:21]} Kxg7 {[%emt 0:00:11]} 25. Nxe5 {[%emt 0:00:11]} Nxe5 {[%emt 0:00:08]} 26. O-O-O {[%emt 0:00:20]} Bd7 {[%emt 0:00:37]} 27. b3 {[%emt 0:01:31]} b5 {[%emt 0:05:23]} 28. Rh4 {[%emt 0:01:09]} Rh8 {[%emt 0:01:37]} 29. Rxh8 {[%emt 0:00:09]} Kxh8 {[%emt 0:00:08]} 30. Re1 {[%emt 0:00:07]} Nd3+ {[%emt 0:00:23]} 31. Kd2 {[%emt 0:00:09]} Nxe1 {[%emt 0:00:06]} 32. Kxe1 {[%emt 0:00:05]} Kg7 {[%emt 0:00:40]} 33. b4 {[%emt 0:00:29]} Kf6 {[%emt 0:00:14]} 34. g3 {[%emt 0:02:16]} Ke5 {[%emt 0:00:24]} 35. a3 {[%emt 0:02:47]} Kxd6 {[%emt 0:00:16]} 36. Kd2 {[%emt 0:00:17]} c5 {[%emt 0:02:43]} 37. Ke3 {[%emt 0:01:49]} cxb4 {[%emt 0:00:43]} 38. axb4 {[%emt 0:00:17]} Ke5 {[%emt 0:00:23]} 39. Kd3 {[%emt 0:00:48]} Bc6 {[%emt 0:01:54]} 40. Ke3 {[%emt 0:00:18]} a6 {[%emt 0:00:26]} 41. Kd3 {[%emt 0:00:52]} Bg2 {[%emt 0:00:40]} 42. Ke3 {[%emt 0:01:20]} Bf1 {[%emt 0:00:37]} 43. Nd1 {[%emt 0:00:42]} Kd5 {[%emt 0:01:23]} 44. Nb2 {[%emt 0:00:08]} Bc4 {[%emt 0:03:44]} 45. Nd3 {[%emt 0:01:03]} Kd6 {[%emt 0:01:32]} 46. Nf4 {[%emt 0:00:27]} Ke5 {[%emt 0:00:53]} 47. Ng6+ {[%emt 0:00:07]} Kf6 {[%emt 0:00:59]} 48. Nf4 {[%emt 0:00:20]} Kg5 {[%emt 0:00:17]} 49. Kf3 {[%emt 0:00:56]} a5 {[%emt 0:01:19]} 50. bxa5 {[%emt 0:00:28]} b4 {[%emt 0:00:07]} 51. Nh3+ {[%emt 0:00:13]} Kf6 {[%emt 0:00:14]} 52. Ke3 {[%emt 0:00:32]} Ke5 {[%emt 0:01:40]} 53. Kd2 {[%emt 0:00:16]} Kd4 {[%emt 0:01:35]} 54. Ng5 {[%emt 0:00:36]} Bd5 {[%emt 0:01:09]} 55. a6 {[%emt 0:00:18]} Kc5 {[%emt 0:00:12]} 56. Kc1 {[%emt 0:01:04]} Kb6 {[%emt 0:00:13]} 57. a7 {[%emt 0:00:02]} Kxa7 {[%emt 0:00:13]} 58. Kb2 {[%emt 0:00:05]} Kb6 {[%emt 0:00:10]} 59. Nh3 {[%emt 0:00:17]} Kc5 {[%emt 0:00:57]} 60. Ng1 {[%emt 0:00:33]} Kd4 {[%emt 0:00:41]} 61. Ne2+ {[%emt 0:00:23]} Ke3 {[%emt 0:00:26]} 62. Nf4 {[%emt 0:00:06]} Bf7 {[%emt 0:00:32]} 63. Ng2+ {[%emt 0:00:55]} Kf3 {[%emt 0:02:43]} 64. Nh4+ {[%emt 0:01:08]} Kg4 {[%emt 0:00:24]} 65. Ng2 {[%emt 0:01:09]} Kxg3 {[%emt 0:00:27]} 66. Ne1 {[%emt 0:00:08]} 0-1

[Event "360 One Wealth GP-4 2024"]
[Site "Mumbai"]
[Date "2024.03.16"]
[Round "6.1"]
[White "Kulkarni, Vikramaditya"]
[Black "Mishra Sanjeev"]
[Result "1-0"]
[ECO "C69"]
[WhiteElo "2192"]
[BlackElo "1833"]
[Annotator "RC"]
[PlyCount "57"]
[EventDate "2024.03.10"]
[EventCountry "IND"]
[SourceTitle "playchess.com"]
[Source "ChessBase"]
[SourceQuality "1"]
[TimeControl "5400+30"]

1. e4 {[%emt 0:00:08]} e5 {[%emt 0:00:26]} 2. Nf3 {[%emt 0:00:10]} Nc6 {[%emt 0:00:02]} 3. Bb5 {[%emt 0:00:11]} a6 {[%emt 0:00:18]} 4. Bxc6 {[%emt 0:01:08]} dxc6 {[%emt 0:00:02]} 5. O-O {[%emt 0:00:12]} f6 {[%emt 0:00:08]} 6. d4 {[%emt 0:00:37]} exd4 {[%emt 0:00:05]} 7. Nxd4 {[%emt 0:00:10]} c5 {[%emt 0:00:23]} 8. Nb3 {[%emt 0:00:03]} Qxd1 {[%emt 0:00:11]} 9. Rxd1 {[%emt 0:00:02]} b6 {[%emt 0:00:34]} 10. Bf4 {[%emt 0:00:46]} Ra7 {[%emt 0:03:35]} 11. Nc3 {[%emt 0:06:08]} g5 {[%emt 0:02:31]} 12. Bg3 {[%emt 0:09:09]} Be6 {[%emt 0:08:30]} 13. a4 {[%emt 0:06:38]} h5 {[%emt 0:02:02]} 14. a5 {[%emt 0:05:30]} b5 {[%emt 0:01:54]} 15. f3 {[%emt 0:02:26]} Rb7 {[%emt 0:04:43]} 16. Nd5 {[%emt 0:16:44]} Rh7 {[%emt 0:03:29]} 17. Bf2 {[%emt 0:04:38]} c4 {[%emt 0:03:22]} 18. Nc5 {[%emt 0:00:11]} Bxc5 {[%emt 0:00:10]} 19. Bxc5 {[%emt 0:00:04]} Bxd5 {[%emt 0:02:10]} 20. Rxd5 {[%emt 0:10:53]} Ne7 {[%emt 0:02:04]} 21. Bxe7 {[%emt 0:00:22]} Rxe7 {[%emt 0:00:20]} 22. Rad1 {[%emt 0:03:49]} Rb8 {[%emt 0:00:15]} 23. h4 {[%emt 0:00:28]} Rg7 {[%emt 0:02:29]} 24. hxg5 {[%emt 0:05:04]} fxg5 {[%emt 0:02:46]} 25. Re5+ {[%emt 0:00:10]} Kf8 {[%emt 0:00:25]} 26. Rdd5 {[%emt 0:00:03]} Re8 {[%emt 0:04:19]} 27. Rxg5 {[%emt 0:08:34]} Rxg5 {[%emt 0:00:07]} 28. Rxg5 {[%emt 0:00:03]} Rd8 {[%emt 0:00:16]} 29. Rd5 {[%emt 0:00:06]} 1-0

[Event "360 One Wealth GP-4 2024"]
[Site "Mumbai"]
[Date "2024.03.16"]
[Round "6.2"]
[White "Guru Prakash"]
[Black "Iyer Arvind"]
[Result "1-0"]
[ECO "C40"]
[WhiteElo "1794"]
[BlackElo "1897"]
[Annotator "NA RC"]
[PlyCount "95"]
[EventDate "2024.03.10"]
[EventCountry "IND"]
[SourceTitle "playchess.com"]
[Source "ChessBase"]
[SourceQuality "1"]
[TimeControl "5400+30"]

1. e4 {[%emt 0:00:04]} e5 {[%emt 0:06:35]} 2. Nf3 {[%emt 0:00:15]} d5 {[%emt 0:01:03]} 3. d4 {[%emt 0:08:24]} dxe4 {[%emt 0:00:40]} 4. Nxe5 {[%emt 0:01:47]} Nd7 {[%emt 0:00:06]} 5. Nxd7 {[%emt 0:01:43]} Qxd7 {[%emt 0:00:12]} 6. c4 {[%emt 0:00:40] C40: Latvian and Elephant Gambits.} Nf6 {[%emt 0:01:47]} 7. Nc3 {[%emt 0:01:03]} Be7 {[%emt 0:01:33]} 8. Be3 {[%emt 0:01:52]} O-O {[%emt 0:03:08]} 9. Be2 {[%emt 0:03:53]} b6 {[%emt 0:03:56]} 10. Qc2 {[%emt 0:02:30]} Bb7 {[%emt 0:02:43]} 11. h3 {[%emt 0:01:17]} Bb4 {[%emt 0:17:57]} 12. O-O-O {[%emt 0:09:31]} Bxc3 {[%emt 0:01:29]} 13. Qxc3 {[%emt 0:00:35]} b5 {[%emt 0:02:00]} 14. Bg5 {[%emt 0:06:49]} Qf5 {[%emt 0:04:21]} 15. Qe3 {[%emt 0:02:26]} bxc4 {[%emt 0:03:29]} 16. g4 {[%emt 0:05:00]} Qe6 {[%emt 0:06:00]} 17. Bxf6 {[%emt 0:01:20]} Qxf6 {[%emt 0:00:17]} 18. Bxc4 {[%emt 0:01:12]} Rab8 {[%emt 0:08:46]} 19. Kb1 {[%emt 0:04:28]} Rfd8 {[%emt 0:14:18]} 20. Rd2 {[%emt 0:10:41]} a5 {[%emt 0:05:20]} 21. Rc1 {[%emt 0:07:04]} Qd6 {[%emt 0:05:29]} 22. Rcc2 {[%emt 0:15:49]} Rd7 {[%emt 0:02:12]} 23. d5 {[%emt 0:00:57]} Re7 {[%emt 0:01:57] [#]} 24. Qa7 $1 {[%emt 0:01:32]} Ree8 {[%emt 0:01:42]} 25. Qxa5 {[%emt 0:01:01]} Ra8 {[%emt 0:01:30]} 26. Qc3 {[%emt 0:00:02]} Rad8 {[%emt 0:00:18]} 27. Qe3 {[%emt 0:01:52]} Qe5 {[%emt 0:00:30]} 28. a3 {[%emt 0:04:09]} (28. Qb3 $18 Ba8 29. d6) 28... h6 {[%emt 0:00:26]} 29. Qa7 {[%emt 0:00:15]} Bxd5 {[%emt 0:02:11]} 30. Bxd5 {[%emt 0:00:02]} Rxd5 {[%emt 0:00:07]} 31. Rxd5 {[%emt 0:00:05]} Qxd5 {[%emt 0:00:04]} 32. Qxc7 {[%emt 0:00:07]} ({Schlechter ist} 32. Rxc7 Qd3+ 33. Ka2 Qxh3 $11) 32... e3 {[%emt 0:01:22]} 33. fxe3 $16 {[%emt 0:01:21]} Qh1+ {[%emt 0:01:37]} 34. Ka2 {[%emt 0:01:19]} Qxh3 {[%emt 0:00:08]} 35. Rf2 {[%emt 0:00:18]} Rf8 {[%emt 0:01:35]} 36. Qf4 {[%emt 0:00:33]} Qh4 {[%emt 0:00:12]} 37. Rc2 {[%emt 0:00:34]} Qe7 {[%emt 0:00:13]} 38. Rc7 {[%emt 0:00:01]} Qe6+ {[%emt 0:00:07]} 39. Qc4 {[%emt 0:01:03]} Qxe3 {[%emt 0:00:25]} 40. Rc8 {[%emt 0:00:01]} g6 {[%emt 0:01:01]} 41. a4 {[%emt 0:00:38]} h5 {[%emt 0:01:21]} 42. gxh5 {[%emt 0:00:15]} gxh5 {[%emt 0:00:06]} 43. Rc5 {[%emt 0:00:13]} Qh6 {[%emt 0:00:46]} 44. Rf5 {[%emt 0:00:24]} Qg6 {[%emt 0:00:49]} 45. Qd5 {[%emt 0:00:11]} Qe6 {[%emt 0:00:14]} 46. Qxe6 {[%emt 0:00:40]} fxe6 {[%emt 0:00:03]} 47. Rxf8+ {[%emt 0:00:02]} Kxf8 {[%emt 0:00:07]} 48. a5 {[%emt 0:00:06]} 1-0